Cogmind - Beta 13 @@@ ROGUE MODE // 2024.04.20 @ 14:28:13 Player: Mantreise Result: Destroyed by as-97119 with Assembled Heavy Rifle Performance ------------- Evolutions (0) 0 Regions Visited (2) 400 Robots Destroyed (15) 75 Value Destroyed (165) 165 Prototype IDs (0) 0 Alien Tech Used (0) 0 Bonus (0) 0 TOTAL SCORE: 640 Bonus ------- None Cogmind --------- Core Integrity 0/250 Matter 392/500 Energy 105/125 System Corruption 6% Temperature Cool (0) Movement Core (150) Ox2 Location -10/Mines Parts ------- > --- POWER (1) -------- Light Ion Engine > --- PROPULSION (2) --- (None) > --- UTILITY (2) ------ High-capacity Matter Pod > --- WEAPON (2) ------- Light Assault Rifle > --- INVENTORY (5) ---- (None) Peak State ------------ > --- POWER ------------ Ion Engine > --- PROPULSION ------- Light Treads Light Treads > --- UTILITY ---------- Improved Terrain Scanner Seismic Detector > --- WEAPON ----------- Light Assault Rifle Light Assault Rifle > --- INVENTORY -------- Light Ion Engine [Rating: 9] Favorites ----------- Power Ion Engine Engine Ion Engine Propulsion Light Treads Treads Light Treads Utility Light Armor Plating Device Improved Terrain Scanner Storage Small Storage Unit Processor Signal Interpreter Protection Light Armor Plating Weapon Light Assault Rifle Ballistic Gun Light Assault Rifle Launcher Rocket Launcher Build | -11 -10 -10 ------- Run | Yrd Mat Min Slots Evolved . | . . . Power . | . . . Propulsion . | . . . Utility . | . . . Weapon . | . . . Parts Attached 16 | 8 3 5 Power 2 | 1 . 1 Engine 2 | 1 . 1 Core . | . . . Reactor . | . . . Propulsion 2 | 2 . . Treads 2 | 2 . . Leg . | . . . Wheel . | . . . Hover . | . . . Flight . | . . . Utility 7 | 3 3 1 Device 2 | 2 . . Storage 2 | 1 . 1 Processor 1 | . 1 . Hackware . | . . . Protection 2 | . 2 . Artifact . | . . . Weapon 5 | 2 . 3 Energy Gun . | . . . Energy Cannon . | . . . Ballistic Gun 4 | 2 . 2 Ballistic Cannon . | . . . Launcher 1 | . . 1 Special Weapon . | . . . Impact Weapon . | . . . Slashing Weapon . | . . . Piercing Weapon . | . . . Special Melee Weapon . | . . . Unidentified Prototypes . | . . . Parts Lost 8 | . . 8 Power 1 | . . 1 Propulsion 2 | . . 2 Utility 2 | . . 2 Weapon 3 | . . 3 Highest Loss Streak 8 | . . 8 To Critical Strikes . | . . . Average Slot Usage (%) 98 | . 99 94 Engine 13 | . 14 13 Treads 27 | . 28 24 Device 11 | . 14 . Processor 7 | . 5 13 Protection 8 | . 7 12 Ballistic Gun 27 | . 28 26 Naked Turns . | . . . Heaviest Build 12 | 12 11 10 Greatest Support 40 | 40 40 40 Greatest Overweight (x) 2 | . . 2 Average Overweight (x) . | . . . Largest Inventory Capacity 8 | 8 5 5 Average Capacity 5 | 7 5 5 Most Carried 4 | 3 4 4 Average Carried 2 | 1 2 3 Final Capacity 5 | 5 5 5 Final Carried 3 | 1 3 . Class Distribution -------------------- 100% | Mutant Dominant Class ---------------- Mutant | -10/Materials Mutant | -10/Mines Resources | -11 -10 -10 ----------- Run | Yrd Mat Min Matter Collected 612 | 298 102 212 Remotely . | . . . Salvage Created 404 | 189 122 93 Parts 25 | 14 11 . Haulers Intercepted . | . . . Recyclers Shooed 1 | 1 . . Parts Field Recycled . | . . . Retrieved Matter . | . . . Parts Self-Destructed . | . . . Prevented . | . . . Kills | -11 -10 -10 ------- Run | Yrd Mat Min Combat Hostiles Destroyed 17 | . 6 11 Guns 7 | . 6 1 AOE 10 | . . 10 Classes Destroyed 7 | 3 2 2 Worker 1 | 1 . . Tunneler 5 | 5 . . Recycler 1 | 1 . . Watcher 1 | . 1 . Swarmer 6 | . 6 . Grunt 1 | . . 1 Assembled 10 | . . 10 Best Kill Streak 10 | 3 4 10 Combat Bots Only 10 | . 3 10 Max Kills in Single Turn 6 | 1 2 6 Gunslinging 1 | . 1 . Exploded 6 | . . 6 Melee . | . . . Uniques/NPCs Destroyed . | . . . Combat | -11 -10 -10 -------- Run | Yrd Mat Min Hostile Shots Fired 121 | . 56 65 Missed 37 | . 17 20 Damage Taken 1119 | . 320 799 Core 255 | . 51 204 Absorbed by Shields . | . . . Core Remaining (%) 100 | 100 . . Volleys Fired 67 | 19 30 18 Largest 2 | 2 2 2 Hottest 53 | 40 40 53 Shots Fired 135 | 38 61 36 Gun 130 | 38 61 31 Cannon . | . . . Launcher 5 | . . 5 Special . | . . . Kinetic 130 | 38 61 31 Thermal . | . . . Explosive 5 | . . 5 Electromagnetic . | . . . Robot Hit Streak 10 | 5 10 8 Robot Miss Streak 10 | 3 10 3 Penetration Max . | . . . Secondary Targets 2 | . 2 . Max Gunslinging Chain 1 | . 1 . Shots Hit Robots 68 | 20 30 18 Core Hits 45 | 12 12 21 Critical Kills . | . . . Critical Parts Destroyed 1 | . 1 . Critical Strikes 1 | . 1 . Destroy 1 | . 1 . Melee Attacks . | . . . Impact . | . . . Slashing . | . . . Piercing . | . . . Sneak Attacks . | . . . Combat Hostiles . | . . . Follow-up Attacks . | . . . Damage Inflicted 1276 | 172 274 830 Guns 606 | 172 274 160 Cannons . | . . . Explosions 670 | . . 670 Melee . | . . . Ramming . | . . . Kinetic 606 | 172 274 160 Thermal . | . . . Explosive 670 | . . 670 Electromagnetic . | . . . Impact . | . . . Slashing . | . . . Piercing . | . . . Highest Corruption 6 | . 3 6 Average Corruption 3 | . 2 3 Corruption Purged . | . . . Corruption Blocked . | . . . Effects 14 | . 9 5 Message Errors 6 | . 3 3 Matter Fused 2 | . 1 1 Heat Flow Errors 1 | . 1 . Data Loss (minor) 1 | . 1 . Misfires 2 | . 2 . Alerts 1 | . . 1 Weapon Failures 1 | . 1 . Overload Shots . | . . . Overflow Damage 19 | . . 19 Projectiles . | . . . Explosions 19 | . . 19 Melee . | . . . Knockbacks . | . . . Impact . | . . . Kinetic . | . . . Secondary . | . . . Self-Inflicted Damage 106 | . . 106 Shots 3 | . . 3 Rammed . | . . . Targets Rammed . | . . . Kicked . | . . . Crushed . | . . . Highest Temperature 98 | . 98 43 Average Temperature 14 | . 11 18 Received Heat Transfer 126 | . . 126 Siege Activations . | . . . Robots Corrupted . | . . . Combat Hostiles . | . . . Parts Fried . | . . . Impact Corruptions . | . . . Robots Melted . | . . . Combat Hostiles . | . . . Parts Melted . | . . . Heat Transferred . | . . . Parts Sabotaged . | . . . Parts Stolen . | . . . Parts Stripped . | . . . Power Chain Reactions . | . . . Alert | -11 -10 -10 ------- Run | Yrd Mat Min Peak Influence 220 | 35 220 130 Initial 85 | . 22 85 Average 59 | 16 65 100 Maximum Alert Level 1 | . 1 . Low Security (%) 96 | 100 94 100 Level 1 3 | . 5 . Level 2 . | . . . Level 3 . | . . . Level 4 . | . . . Level 5 . | . . . High Security . | . . . Max Security . | . . . Squads Dispatched 1 | . 1 . Investigation 1 | . 1 . Extermination . | . . . Reinforcement . | . . . Assault . | . . . Garrison . | . . . Intercept . | . . . Searches Triggered . | . . . Construction Impeded . | . . . Haulers Reinforced . | . . . Active Scanning Responses . | . . . Cargo Convoy Interrupts . | . . . Stealth | -11 -10 -10 --------- Run | Yrd Mat Min Distress Signals 1 | . 1 . Communications Jammed . | . . . Distress Signals . | . . . Times Spotted 38 | . 19 19 Peak Tracking Total 18 | . 5 18 Tactical Retreats . | . . . Traps | -11 -10 -10 ------- Run | Yrd Mat Min Traps Triggered 2 | . 2 . Indirectly . | . . . Trap Hack Attempts . | . . . Triggered . | . . . Disarmed . | . . . Reprogrammed . | . . . Reused . | . . . Traps Extracted . | . . . Installed . | . . . Triggered . | . . . Machines | -11 -10 -10 ---------- Run | Yrd Mat Min Machines Disabled . | . . . Max in Single Turn . | . . . Machines Repaired . | . . . Machines Dismantled . | . . . Machines Sabotaged . | . . . Overloaded Fab Kills . | . . . Hacking | -11 -10 -10 --------- Run | Yrd Mat Min Machines Accessed 2 | . 2 . Terminals 2 | . 2 . Fabricators . | . . . Repair Stations . | . . . Recycling Units . | . . . Scanalyzers . | . . . Garrison Access . | . . . Total Hacks 8 | . 8 . Successful 3 | . 3 . Failed 5 | . 5 . Catastrophic 1 | . 1 . Database Lockouts . | . . . Manual 8 | . 8 . Terminals 8 | . 8 . Fabricators . | . . . Repair Stations . | . . . Recycling Units . | . . . Scanalyzers . | . . . Garrison Access . | . . . Terminal Hacks 1 | . 1 . Branch Access Points 1 | . 1 . Fabricator Hacks . | . . . Repair Station Hacks . | . . . Recycling Unit Hacks . | . . . Scanalyzer . | . . . Garrison Access Hacks . | . . . Unauthorized Hacks 2 | . 2 . Terminals 2 | . 2 . Botnet 2 | . 2 . Fabricators . | . . . Repair Stations . | . . . Recycling Units . | . . . Scanalyzers . | . . . Garrison Access . | . . . Data Cores Recovered . | . . . Used . | . . . Hacking Detections 2 | . 2 . Full Trace Events 2 | . 2 . Feedback Events . | . . . Feedback Blocked . | . . . Robot Schematics Acquired . | . . . Robots Built . | . . . Authchips . | . . . Time . | . . . Total Robot Build Rating . | . . . Part Schematics Acquired . | . . . Parts Built . | . . . Authchips . | . . . Time . | . . . Total Part Build Rating . | . . . Parts Repaired . | . . . Time . | . . . Parts Recycled . | . . . Recycled Matter . | . . . Retrieved Matter . | . . . Retrieved Components . | . . . Parts Scanalyzed . | . . . Part Schematics Acquired . | . . . Parts Damaged . | . . . Bothacking | -11 -10 -10 ------------ Run | Yrd Mat Min Used RIF Installer . | . . . Robots Hacked . | . . . Non-combat . | . . . Combat . | . . . Robot Hacks Applied . | . . . Relay Couplers Released . | . . . Fabnet Peak Effective % . | . . . Robots Rewired . | . . . Allies Hacked . | . . . Hacks Repelled . | . . . Allies | -11 -10 -10 -------- Run | Yrd Mat Min Total Allies . | . . . Largest Group . | . . . Highest-Rated Group . | . . . Highest-Rated Ally . | . . . Total Orders . | . . . Ally Attacks . | . . . Total Damage . | . . . Kills . | . . . Allies Corrupted . | . . . Allies Melted . | . . . Intel | -11 -10 -10 ------- Run | Yrd Mat Min Robot Analysis Total . | . . . Derelict Logs Recovered 1 | . . 1 Drone Launches . | . . . Drone Recoveries . | . . . Exploration | -11 -10 -10 ------------- Run | Yrd Mat Min Turns Passed 1254 | 288 756 210 Spaces Moved 572 | 145 330 97 Core 15 | 12 . 3 Treads 557 | 133 330 94 Legs . | . . . Wheels . | . . . Hover . | . . . Flight . | . . . Fastest Speed 50 | 50 160 100 Average Speed 157 | 150 160 158 Slowest Speed 160 | 160 160 160 Overloaded Moves . | . . . Propulsion Burnouts . | . . . Robots Hopped . | . . . Cave-ins Triggered . | . . . Exploration Rate (%) 21 | 7 33 24 Regions Visited 2 Branch Regions 1 Pre-discovered Areas . | . . . Known Exits Taken 1 | . 1 . Unknown Exits Taken 1 | 1 . . Scrap Searched 2 | . . 2 Spaces Dug . | . . . Terrain Destroyed 38 | . . 38 Melee . | . . . Projectile . | . . . AOE 38 | . . 38 Terrain Rammed . | . . . Walls Destroyed . | . . . Machines Disabled . | . . . Actions | -11 -10 -10 --------- Run | Yrd Mat Min Total 819 | 185 511 123 Wait 143 | . 141 2 Move 570 | 144 329 97 Hop . | . . . Pick Up 17 | 11 5 1 Fast Attach . | . . . Attach 14 | 8 2 4 Detach . | . . . Swap 2 | . 1 1 Drop 6 | 3 3 . Fire 67 | 19 30 18 Melee . | . . . Ram . | . . . Kick . | . . . Crush . | . . . Escape Stasis . | . . . Rewire . | . . . Trap . | . . . Miscellaneous . | . . . Route ------- -11/Scrapyard -10/Materials (discovered 2 exits: *Min x2) -10/Mines History --------- Turn | Location | Event 2 | -11/Scrapyard | Discovered new exit (range 16) 289 | -11/Scrapyard | Entered Materials 315 | -10/Materials | Build established: Mutant 1003 | -10/Materials | Discovered new exit (range 8) 1022 | -10/Materials | Identified exit to Mines 1045 | -10/Materials | Entered Mines 1060 | -10/Mines | Learned Materials garrison access intel 1097 | -10/Mines | Met a Derelict bent on vengeance 1175 | -10/Mines | Received a Rocket Launcher from a helpful Derelict 1220 | -10/Mines | Assembled infested the area 1243 | -10/Mines | Core integrity fell below 50% 1247 | -10/Mines | Core integrity fell below 20% 1255 | -10/Mines | Destroyed by as-97119 with Assembled Heavy Rifle Last Messages --------------- System corrupted by crushing effect (+2). Knocked back. Destroyed Asb. F-torch. as-91809 destroyed. as-45324 destroyed. as-58060 suffers critical hit (Destroy). Ion Engine destroyed. as-97052 destroyed. The unstable cave ceiling collapses. Knocked back. Destroyed Asb. F-torch. as-83239 destroyed. as-58060 destroyed. Lgt. Assault Rifle destroyed. DS#/T8JQ1HKHDGR57SVYC|8 Rocket Launcher destroyed. Signal Interpreter destroyed. System corrupted by crushing effect (+1). The unstable cave ceiling collapses. Lgt. Assault Rifle destroyed. Map ----- +----------------------------------------------------+ | ????????????????????????????????????????????# #?? | | ????????????????????????????????????????????# #?? | | ????????????????????????????????????????????# [#?? | | ????????????????????????????????????????????# #?? | | ????????????????????????????????????????????#!!#?? | | ????????????????????????????????????????????# #?? | | ????????????????????????????????????????????# #?? | | ???????????????????????????????????????????## ### | | ??????????????????????????????????????????## | | ???????????????????????? #????????????????# | | ?????????????? ??????? #????????????????# | | ???????????? ?????? #???????????????## | | ??????????? ##???? #???????????????# | | ???????????# #### #???????????##### | | ???????????# # # #???????????# | | ???????????# #???????????# ! | | ???????????# # ###?????????# !#### | | ???????????## ! ##????????# #??## ### | | ???????????# a #????????# #???# #?## | | ??????????# a ????????# ##### #??# | | ??????????# #? ###?????# #?? | | ??????????# #??# ##????# #######?? | | ????????????# r #???# ###### #???????? | | ????????????? * ##??# #??????? | | ??????????????????# #### #??????? | | ??????????????????## a@ # #########??????? | | ???????????????????# #?????????????? | | ???????????????????# #?????????????? | | ???????????????????####### #???????????????# | | ?????????????????????????## #???????????????? | | ??????????????????????????### #???????????????? | | ????????????????????????????## ##???????????????? | | ?????????????????????????????####????????????????? | | ?????????????????????????????????????????????????? | | ?????????????????????????????????????????????????? | | ?????????????????????????????????????????????????? | | ?????????????????????????????????????????????????? | | ?????????????????????????????????????????????????? | | ?????????????????????????????????????????????????? | | ?????????????????????????????????????????????????? | | ?????????????????????????????????????????????????? | | | | | | | | | | | | | | | | | | | +----------------------------------------------------+ Best States ------------- Heat Dissipation 25 Energy Generation 10 Energy Capacity 250 Matter Stores 389 Matter Capacity 500 Sight Range 16 Terrain Scan Range 16 Terrain Scan Density 10 Armor Coverage 150 Evasion (%) 50 Recoil Reduction 2 Item Schematics ----------------- None Robot Schematics ------------------ None Fabricated ------------ Nothing Alien Tech Used ----------------- None Achievements -------------- Quick And Dirty Challenges ------------ None Game ------ Seed RecyclingUltimateDoublenader Manual? 0 Play Time 00:10:43 Cumulative 21.1 hours Start 2024.04.20 @ 14:19:29 End 2024.04.20 @ 14:28:13 Sessions 1 Manual Loads 0 Difficulty Rogue Special Mode None Game No. 28 Rogue 26 Adventurer 2 Explorer 0 Win Type - Total 0 Types 0/0/0/0/0/0/0/0/0 Lore% 22 Gallery% 28 Achievement% 23 Wizard Run 0 Options --------- Layout 0 ASCII 0 Keyboard 0 Movement Mouse Keybinds 0 Fullscreen 2 Font 18/Smallcaps Map View 38x25 Zoom Use 99% Tactical HUD 0 Map Filters NONE Filters NONE Steam 1 RUN: bc0cea1f-948f-4841-8c76-49d608ca920a